fUST/lending_fUST_20251206
["ID","MTS","AMOUNT","RATE_DAILY","PERIOD"]
[396490340,1765000152490,-185.7999349,0.00010992,2]
[396490341,1765000154725,-175.04842494,0.00010992,2]
[396490342,1765000156301,-152.02194863,0.00010992,2]
[396490343,1765000156518,250.0,0.00013097,3]
[396490344,1765000157845,-247.0,0.00010992,2]
[396490345,1765000161728,-231.82336119,0.00010992,2]
[396490346,1765000163323,-175.61955077,0.00010992,2]
[396490347,1765000166795,-371.58161176,0.00010992,2]
[396490348,1765000168357,-310.78716698,0.00010992,2]
[396490349,1765000169104,171.70485845,0.0001064,2]
[396490350,1765000169952,-182.7504816,0.00010992,2]
[396490351,1765000171614,308.75967647,0.0001064,2]
[396490352,1765000189391,865.11926034,0.00010992,2]
[396490353,1765000201283,300.0,0.00010991,2]
[396490354,1765000202211,300.0,0.00010991,2]
[396490355,1765000202269,300.0,0.00010991,2]
[396490356,1765000208383,300.0,0.00010991,2]
[396490357,1765000210229,1200.0,0.00010991,2]
[396490358,1765000212710,-4175.04589744,0.00010992,2]
[396490359,1765000212760,-10000.01,0.00010992,2]
[396490360,1765000212857,-10000.01,0.00010992,2]
[396490361,1765000212978,-10000.01,0.00010992,2]
[396490362,1765000215643,-10000.01,0.00010992,2]
[396490363,1765000227404,5000.0,0.0001085,2]
[396490391,1765000231825,-1631.79117642,0.00010992,2]
[396490394,1765000231836,-240.0,0.00010992,2]
[396490396,1765000231845,-176.09301886,0.00011037,2]
[396490397,1765000231854,-548.77148527,0.00011082,2]
[396490400,1765000231864,-517.76666587,0.00011085,2]
[396490402,1765000231873,-1094.15160332,0.00011085,2]
[396490404,1765000231883,-657.0,0.00011088,2]
[396490406,1765000231892,-29201.52919507,0.00011088,2]
[396490408,1765000231903,-1483.25496354,0.00011088,2]
[396490411,1765000231918,-914.38714063,0.00011088,2]
[396490413,1765000231929,-18400.82870076,0.00011088,2]
[396490415,1765000231938,-500.0,0.00011089,2]
[396490418,1765000231948,-155.53939109,0.00011089,2]
[396490421,1765000231957,-182.60404871,0.00011089,2]
[396490424,1765000231967,-500.0,0.00011089,2]
[396490427,1765000231976,-500.0,0.00011089,2]
[396490430,1765000231986,-500.0,0.00011089,2]
[396490433,1765000231995,-500.0,0.00011089,2]
[396490436,1765000232004,-402.242918,0.00011089,2]
[396490439,1765000232014,-500.0,0.00011089,2]
[396490442,1765000232023,-500.0,0.00011089,2]
[396490445,1765000232032,-500.0,0.00011089,2]
[396490448,1765000232040,-500.0,0.00011089,2]
[396490451,1765000232050,-254.31044319,0.00011089,2]
[396490453,1765000232059,-500.0,0.00011089,2]
[396490455,1765000232068,-500.0,0.00011089,2]
[396490457,1765000232077,-500.0,0.00011089,2]
[396490459,1765000232087,-500.0,0.00011089,2]
[396490461,1765000232096,-500.0,0.00011089,2]
[396490463,1765000232105,-500.0,0.00011089,2]
[396490465,1765000232114,-500.0,0.00011089,2]
[396490467,1765000232123,-500.0,0.00011089,2]
[396490469,1765000232131,-500.0,0.00011089,2]
[396490471,1765000232140,-500.0,0.00011089,2]
[396490473,1765000232149,-500.0,0.00011089,2]
[396490475,1765000232158,-500.0,0.00011089,2]
[396490477,1765000232167,-171.91899681,0.00011089,2]
[396490479,1765000232176,-500.0,0.00011089,2]
[396490481,1765000232185,-500.0,0.00011089,2]
[396490483,1765000232194,-500.0,0.00011089,2]
[396490485,1765000232203,-500.0,0.00011089,2]
[396490487,1765000232212,-500.0,0.00011089,2]
[396490489,1765000232221,-500.0,0.00011089,2]
[396490491,1765000232230,-500.0,0.00011089,2]
[396490493,1765000232240,-500.0,0.00011089,2]
[396490495,1765000232250,-500.0,0.00011089,2]
[396490497,1765000232260,-500.0,0.00011089,2]
[396490499,1765000232269,-500.0,0.00011089,2]
[396490501,1765000232278,-500.0,0.00011089,2]
[396490503,1765000232287,-500.0,0.00011089,2]
[396490505,1765000232296,-500.0,0.00011089,2]
[396490507,1765000232305,-500.0,0.00011089,2]
[396490509,1765000232314,-500.0,0.00011089,2]
[396490511,1765000232324,-500.0,0.00011089,2]
[396490513,1765000232336,-500.0,0.00011089,2]
[396490515,1765000232346,-500.0,0.00011089,2]
[396490517,1765000232355,-500.0,0.00011089,2]
[396490519,1765000232366,-259.44148101,0.00011089,2]
[396490521,1765000232378,-500.0,0.00011089,2]
[396490523,1765000232387,-500.0,0.00011089,2]
[396490525,1765000232395,-500.0,0.00011089,2]
[396490527,1765000232405,-500.0,0.00011089,2]
[396490529,1765000232414,-500.0,0.00011089,2]
[396490531,1765000232423,-500.0,0.00011089,2]
[396490533,1765000232432,-500.0,0.00011089,2]
[396490535,1765000232442,-500.0,0.00011089,2]
[396490537,1765000232451,-500.0,0.00011089,2]
[396490539,1765000232459,-500.0,0.00011089,2]
[396490541,1765000232468,-500.0,0.00011089,2]
[396490543,1765000232477,-249.95632217,0.00011089,2]
[396490545,1765000232486,-564.70375939,0.00011089,2]
[396490547,1765000232495,-500.0,0.00011089,2]
[396490549,1765000232504,-531.64002855,0.00011089,2]
[396490551,1765000232512,-500.0,0.00011089,2]
[396490553,1765000232521,-3430.74,0.00011089,2]
[396490555,1765000232531,-961.17,0.00011089,2]
[396490557,1765000232539,-538.91,0.00011089,2]
[396490559,1765000232549,-500.0,0.00011089,2]
[396490561,1765000232558,-1027.46,0.00011089,2]
[396490563,1765000232566,-6304.74,0.00011089,2]
[396490565,1765000232576,-500.0,0.00011089,2]
[396490566,1765000232586,-7103.25,0.00011089,2]
[396490568,1765000232596,-500.0,0.00011089,2]
[396490570,1765000232605,-500.0,0.00011089,2]
[396490572,1765000232615,-500.0,0.00011091,2]
[396490574,1765000232624,-500.0,0.00011091,2]
[396490576,1765000232634,-500.0,0.00011091,2]
[396490578,1765000232643,-500.0,0.00011091,2]
[396490580,1765000232652,-500.0,0.00011091,2]
[396490582,1765000232661,-500.0,0.00011091,2]
[396490584,1765000232670,-500.0,0.00011091,2]
[396490586,1765000232679,-500.0,0.00011091,2]
[396490588,1765000232688,-538.99,0.00011091,2]
[396490590,1765000232699,-500.0,0.00011091,2]
[396490592,1765000232710,-772.6,0.00011091,2]
[396490595,1765000232719,-500.0,0.00011091,2]
[396490597,1765000232730,-500.0,0.00011091,2]
[396490598,1765000232743,-500.0,0.00011091,2]
[396490600,1765000232753,-500.0,0.00011091,2]
[396490603,1765000232762,-500.0,0.00011091,2]
[396490604,1765000232771,-500.0,0.00011091,2]
[396490606,1765000232780,-500.0,0.00011091,2]
[396490608,1765000232789,-500.0,0.00011091,2]
[396490610,1765000232798,-500.0,0.00011091,2]
[396490612,1765000232807,-500.0,0.00011091,2]
[396490614,1765000232815,-500.0,0.00011091,2]
[396490616,1765000232824,-500.0,0.00011091,2]
[396490619,1765000232833,-500.0,0.00011091,2]
[396490621,1765000232843,-500.0,0.00011091,2]
[396490622,1765000232852,-710.69,0.00011091,2]
[396490624,1765000232861,-500.0,0.00011091,2]
[396490626,1765000232870,-500.0,0.00011091,2]
[396490628,1765000232879,-1513.29,0.00011091,2]
[396490630,1765000232887,-500.0,0.00011091,2]
[396490632,1765000232896,-500.0,0.00011091,2]
[396490634,1765000232906,-1211.3,0.00011091,2]
[396490636,1765000232915,-500.0,0.00011091,2]
[396490638,1765000232924,-500.0,0.00011091,2]
[396490640,1765000232933,-500.0,0.00011091,2]
[396490642,1765000232942,-500.0,0.00011091,2]
[396490645,1765000232954,-500.0,0.00011091,2]
[396490647,1765000232962,-500.0,0.00011091,2]
[396490648,1765000232972,-1327.83,0.00011091,2]
[396490651,1765000232982,-500.0,0.00011091,2]
[396490652,1765000232991,-807.13,0.00011091,2]
[396490655,1765000233001,-500.0,0.00011091,2]
[396490656,1765000233011,-500.0,0.00011091,2]
[396490658,1765000233020,-500.0,0.00011091,2]
[396490660,1765000233029,-6217.13,0.00011091,2]
[396490662,1765000233039,-500.0,0.00011091,2]
[396490664,1765000233048,-500.0,0.00011091,2]
[396490666,1765000233057,-500.0,0.00011091,2]
[396490668,1765000233066,-500.0,0.00011091,2]
[396490671,1765000233075,-500.0,0.00011091,2]
[396490672,1765000233084,-988.37,0.00011091,2]
[396490674,1765000233094,-500.0,0.00011091,2]
[396490676,1765000233103,-500.0,0.00011091,2]
[396490678,1765000233112,-500.0,0.00011091,2]
[396490680,1765000233121,-956.44,0.00011091,2]
[396490682,1765000233130,-500.0,0.00011091,2]
[396490685,1765000233139,-500.0,0.00011091,2]
[396490687,1765000233148,-500.0,0.00011091,2]
[396490689,1765000233158,-1914.53,0.00011091,2]
[396490691,1765000233167,-500.0,0.00011091,2]
[396490693,1765000233176,-500.0,0.00011091,2]
[396490694,1765000233186,-500.0,0.00011091,2]
[396490697,1765000233196,-2439.04,0.00011091,2]
[396490699,1765000233205,-500.0,0.00011091,2]
[396490700,1765000233215,-500.0,0.00011091,2]
[396490702,1765000233224,-500.0,0.00011091,2]
[396490704,1765000233232,-500.0,0.00011091,2]
[396490706,1765000233242,-1328.27,0.00011091,2]
[396490708,1765000233251,-500.0,0.00011091,2]
[396490710,1765000233260,-500.0,0.00011091,2]
[396490712,1765000233269,-500.0,0.00011091,2]
[396490714,1765000233279,-500.0,0.00011091,2]
[396490716,1765000233289,-500.0,0.00011091,2]
[396490718,1765000233298,-500.0,0.00011091,2]
[396490720,1765000233307,-790.42,0.00011091,2]
[396490722,1765000233316,-505.12,0.00011091,2]
[396490725,1765000233330,-500.0,0.00011091,2]
[396490726,1765000233339,-1140.86,0.00011091,2]
[396490729,1765000233349,-1241.43,0.00011092,2]
[396490731,1765000233358,-1286.16,0.00011092,2]
[396490733,1765000233368,-2989.16,0.00011092,2]
[396490734,1765000233378,-548.07,0.00011092,2]
[396490736,1765000233387,-500.0,0.00011092,2]
[396490739,1765000233396,-500.0,0.00011092,2]
[396490740,1765000233405,-500.0,0.00011092,2]
[396490742,1765000233415,-644.01,0.00011092,2]
[396490744,1765000233424,-3129.51,0.00011092,2]
[396490746,1765000233433,-579.43,0.00011092,2]
[396490748,1765000233443,-500.0,0.00011092,2]
[396490750,1765000233452,-500.0,0.00011092,2]
[396490752,1765000233461,-500.0,0.00011092,2]
[396490754,1765000233471,-500.0,0.00011092,2]
[396490756,1765000233479,-873.93,0.00011092,2]
[396490758,1765000233489,-500.0,0.00011092,2]
[396490760,1765000233498,-500.0,0.00011092,2]
[396490762,1765000233507,-852.11,0.00011092,2]
[396490764,1765000233516,-500.0,0.00011092,2]
[396490789,1765000233741,-500.0,0.00011093,2]
[396490791,1765000233751,-500.0,0.00011093,2]
[396490793,1765000233760,-500.0,0.00011093,2]
[396490795,1765000233769,-500.0,0.00011093,2]
[396490797,1765000233778,-555.0,0.00011093,2]
[396490799,1765000233788,-151.94269058,0.00011093,2]
[396490801,1765000233796,-500.0,0.00011094,2]
[396490803,1765000233806,-500.0,0.00011094,2]
[396490805,1765000233815,-1029.15,0.00011094,2]
[396490807,1765000233826,-500.0,0.00011094,2]
[396490809,1765000233836,-500.0,0.00011094,2]
[396490811,1765000233846,-500.0,0.00011094,2]
[396490813,1765000233855,-500.0,0.00011094,2]
[396490815,1765000233864,-500.0,0.00011094,2]
[396490817,1765000233873,-429.29365151,0.00011094,2]
[396490819,1765000233882,-500.0,0.00011094,2]
[396490821,1765000233892,-500.0,0.00011094,2]
[396490823,1765000233901,-143.68946932,0.00011094,2]
[396490826,1765000233914,-356.31053068,0.00011094,2]
[396490828,1765000233923,-500.0,0.00011094,2]
[396490829,1765000233932,-500.0,0.00011094,2]
[396490832,1765000233942,-4.74894204,0.00011094,2]
[396490834,1765000233954,-495.25105796,0.00011094,2]
[396490836,1765000233964,-500.0,0.00011094,2]
[396490838,1765000233973,-246.73755801,0.00011094,2]
[396490950,1765000235243,1338.36515131,0.00010952,2]
[396491138,1765000237839,-314.83229562,0.00010991,2]
[396491139,1765000237962,-185.16770438,0.00010991,2]
[396491140,1765000237971,-500.0,0.00011089,2]
[396491141,1765000237980,-500.0,0.00011091,2]
[396491142,1765000237990,-500.0,0.00011091,2]
[396491143,1765000237999,-500.0,0.00011091,2]
[396491144,1765000238008,-253.26244199,0.00011094,2]
[396491145,1765000238016,-1370.5,0.00011094,2]
[396491146,1765000238026,-500.0,0.00011094,2]
[396491147,1765000238035,-275.71029889,0.00011094,2]
[396491148,1765000238045,-500.0,0.00011094,2]
[396491149,1765000238054,-500.0,0.00011094,2]
[396491150,1765000238063,-1119.17,0.00011094,2]
[396491151,1765000238072,-500.0,0.00011094,2]
[396491152,1765000238081,-618.30845981,0.00011094,2]
[396491153,1765000238090,-500.0,0.00011094,2]
[396491154,1765000238100,-500.0,0.00011094,2]
[396491155,1765000238109,-500.0,0.00011094,2]
[396491156,1765000238119,-500.0,0.00011094,2]
[396491157,1765000238129,-500.0,0.00011094,2]
[396491158,1765000238139,-740.98,0.00011094,2]
[396491159,1765000238149,-500.0,0.00011094,2]
[396491160,1765000238158,-745.35,0.00011094,2]
[396491161,1765000238166,-928.79,0.00011094,2]
[396491162,1765000238176,-500.0,0.00011094,2]
[396491163,1765000238185,-500.0,0.00011094,2]
[396491164,1765000238195,-830.67,0.00011094,2]
[396491165,1765000238203,-500.0,0.00011094,2]
[396491166,1765000238213,-500.0,0.00011094,2]
[396491167,1765000238222,-996.4,0.00011094,2]
[396491168,1765000238231,-500.0,0.00011094,2]
[396491169,1765000238240,-1718.88,0.00011094,2]
[396491170,1765000238250,-776.89,0.00011094,2]
[396491171,1765000238259,-581.3,0.00011094,2]
[396491172,1765000238267,-1085.55,0.00011094,2]
[396491173,1765000238276,-500.0,0.00011094,2]
[396491174,1765000238285,-500.0,0.00011094,2]
[396491175,1765000238294,-500.0,0.00011094,2]
[396491176,1765000238304,-500.0,0.00011094,2]
[396491177,1765000238313,-500.0,0.00011094,2]
[396491178,1765000238321,-1439.27,0.00011094,2]
[396491179,1765000238332,-500.0,0.00011094,2]
[396491180,1765000238342,-500.0,0.00011094,2]
[396491181,1765000238351,-500.0,0.00011094,2]
[396491182,1765000238361,-1439.16,0.00011094,2]
[396491183,1765000238370,-1246.26,0.00011094,2]
[396491184,1765000238379,-500.0,0.00011094,2]
[396491185,1765000238389,-594.0,0.00011094,2]
[396491186,1765000238398,-890.33,0.00011094,2]
[396491187,1765000238407,-914.43,0.00011094,2]
[396491188,1765000238417,-576.56,0.00011094,2]
[396491189,1765000238427,-1223.71,0.00011094,2]
[396491190,1765000238436,-500.0,0.00011094,2]
[396491191,1765000238445,-500.0,0.00011094,2]
[396491192,1765000238455,-2833.63,0.00011094,2]
[396491193,1765000238465,-500.0,0.00011094,2]
[396491194,1765000238474,-1152.12,0.00011094,2]
[396491195,1765000238483,-500.0,0.00011094,2]
[396491196,1765000238492,-500.0,0.00011094,2]
[396491197,1765000238501,-500.0,0.00011094,2]
[396491198,1765000238511,-2619.54,0.00011094,2]
[396491199,1765000238520,-212.1412579,0.00011094,2]
[396491200,1765000238529,-869.33,0.00011094,2]
[396491201,1765000238539,-500.0,0.00011094,2]
[396491202,1765000238548,-500.0,0.00011094,2]
[396491203,1765000238557,-500.0,0.00011094,2]
[396491204,1765000238566,-500.0,0.00011094,2]
[396491205,1765000238575,-500.0,0.00011094,2]
[396491206,1765000238583,-500.0,0.00011094,2]
[396491207,1765000238593,-500.0,0.00011094,2]
[396491208,1765000238602,-1302.87821236,0.00011094,2]
[396491209,1765000238890,-610.67178764,0.00011094,2]
[396491210,1765000238899,-919.95,0.00011094,2]
[396491211,1765000238908,-500.0,0.00011094,2]
[396491212,1765000238918,-500.0,0.00011094,2]
[396491213,1765000238927,-1227.85,0.00011094,2]
[396491214,1765000238937,-500.0,0.00011094,2]
[396491215,1765000238946,-273.12474936,0.00011094,2]
[396491222,1765000240452,-3e-08,0.00010991,2]
[396491224,1765000240469,-691.86999997,0.00010991,2]
[396491225,1765000240479,-308.13000003,0.00011089,2]
[396491234,1765000243077,-191.86999997,0.00011089,2]
[396491235,1765000243087,-184.13000003,0.00011094,2]
[396491236,1765000243134,-42.74525061,0.00011094,2]
[396491237,1765000243143,-500.0,0.00011094,2]
[396491238,1765000243152,-369.00474939,0.00011094,2]
[396491239,1765000244179,614.90605976,0.00010952,2]
[396491247,1765000246033,-1616.46,0.00011089,2]
[396491248,1765000246043,-1388.99,0.00011089,2]
[396491249,1765000246052,-1486.72,0.00011091,2]
[396491250,1765000246061,-500.0,0.00011091,2]
[396491251,1765000246071,-130.99525061,0.00011094,2]
[396491252,1765000246079,-500.0,0.00011094,2]
[396491253,1765000246089,-500.0,0.00011094,2]
[396491254,1765000246099,-500.0,0.00011094,2]
[396491255,1765000246108,-500.0,0.00011094,2]
[396491256,1765000246117,-500.0,0.00011094,2]
[396491257,1765000246127,-2244.63823536,0.00011094,2]
[396491258,1765000246138,-3101.27176464,0.00011094,2]
[396491259,1765000246148,-916.55,0.00011094,2]
[396491260,1765000246157,-500.0,0.00011094,2]
[396491261,1765000246167,-500.0,0.00011094,2]
[396491262,1765000246176,-745.33,0.00011094,2]
[396491263,1765000246185,-500.0,0.00011094,2]
[396491264,1765000246194,-925.17,0.00011094,2]
[396491265,1765000246204,-3025.22,0.00011094,2]
[396491266,1765000246213,-500.0,0.00011094,2]
[396491267,1765000246222,-500.0,0.00011094,2]
[396491268,1765000246232,-500.0,0.00011094,2]
[396491269,1765000246241,-299.6751632,0.00011094,2]
[396491270,1765000246250,-106.78307216,0.00011094,2]
[396491271,1765000246269,-393.21692784,0.00011094,2]
[396491272,1765000246278,-500.0,0.00011094,2]
[396491273,1765000246288,-166.92242728,0.00011094,2]
[396491274,1765000252023,5000.0,0.00010952,2]
[396491275,1765000260061,653.1749554,0.00010952,2]
[396491276,1765000262905,205.11,0.0001,2]
[396491277,1765000263264,205.11,0.000101,2]
[396491278,1765000263534,205.11,0.000102,2]
[396491279,1765000263822,205.11,0.000102,2]
[396491280,1765000264204,205.11,0.000103,2]
[396491281,1765000264488,205.11,0.000104,2]
[396491282,1765000264804,205.11,0.000105,2]
[396491283,1765000265115,205.11,0.000106,2]
[396491284,1765000265418,205.11,0.000107,2]
[396491285,1765000265736,205.11,0.000107,2]
[396491286,1765000266188,205.11,0.000108,2]
[396491287,1765000266514,137.35383353,0.000109,2]
[396491288,1765000266538,67.75616647,0.000109,2]
[396491289,1765000273982,1140.0,0.000174,60]
[396491296,1765000275888,5000.0,0.00010952,2]
[396491306,1765000298710,4932.25383353,0.00010952,2]
[396491307,1765000298734,67.74616647,0.00010952,2]
[396491308,1765000310777,313.50176137,0.0001064,2]
[396491309,1765000314562,358.28772728,0.0001064,2]
[396491310,1765000318176,559.26474929,0.0001064,2]
[396491311,1765000322183,5000.0,0.00010988,2]
[396491312,1765000322308,158.0,0.00010987,2]
[396491313,1765000331005,3610.95576206,0.00010988,2]
[396491314,1765000331028,523.9249776,0.00010988,2]
[396491315,1765000335560,155.88,9.8e-05,2]
[396491316,1765000335825,155.88,9.8e-05,2]
[396491317,1765000336102,155.88,9.9e-05,2]
[396491318,1765000336369,155.88,0.0001,2]
[396491319,1765000336631,155.88,0.000101,2]
[396491320,1765000336896,155.88,0.000102,2]
[396491321,1765000337182,155.88,0.000103,2]
[396491322,1765000337445,155.88,0.000104,2]
[396491323,1765000337815,155.88,0.000105,2]
[396491324,1765000338089,155.88,0.000105,2]
[396491325,1765000338475,155.88,0.000106,2]
[396491326,1765000338847,155.88,0.000107,2]
[396491327,1765000339145,155.88,0.000108,2]
[396491328,1765000339430,155.88,0.000109,2]
[396491329,1765000347237,5000.0,0.00010988,2]
[396491330,1765000355039,5000.0,0.0001085,2]
[396491331,1765000370382,5000.0,0.00010947,2]
[396491332,1765000378211,5000.0,0.00010947,2]
[396491333,1765000392481,150.0,0.000152,30]
[396491334,1765000393347,0.01,0.00010947,2]
[396491335,1765000393373,4999.99,0.00010947,2]
[396491336,1765000394296,151.67,0.0001,2]
[396491337,1765000394440,151.67,0.000101,2]
[396491338,1765000394832,151.67,0.000102,2]
[396491339,1765000395181,151.67,0.000103,2]
[396491340,1765000395436,151.67,0.000104,2]
[396491341,1765000395735,151.67,0.000106,2]
[396491342,1765000396083,151.67,0.000107,2]
[396491343,1765000396482,151.67,0.000108,2]
[396491344,1765000396772,151.67,0.000109,2]
[396491345,1765000416631,3634.99,0.00010947,2]
[396491346,1765000416658,1365.01,0.00010947,2]
[396491347,1765000440003,5000.0,0.00010947,2]
[396491348,1765000452250,151.67,0.0001,2]
[396491349,1765000452579,151.67,0.000101,2]
[396491350,1765000452919,151.67,0.000103,2]
[396491351,1765000453192,151.67,0.000104,2]
[396491352,1765000453478,151.67,0.000106,2]
[396491353,1765000453751,151.67,0.000107,2]
[396491354,1765000454045,151.67,0.000109,2]
[396491355,1765000462852,2573.31,0.00010947,2]
[396491356,1765000462880,2426.69,0.00010947,2]
[396491357,1765000476155,247.9524088,0.0001064,2]
[396491360,1765000485750,1495.0,0.00010947,2]
[396491362,1765000509889,151.67,0.0001,2]
[396491363,1765000510177,151.67,0.000102,2]
[396491364,1765000511257,151.67,0.000104,2]
[396491365,1765000511435,151.67,0.000106,2]
[396491366,1765000511760,151.67,0.000108,2]
[396491368,1765000517222,-445.04757629,0.00010985,2]
[396491414,1765000519301,-181.3345486,0.00010985,2]
[396491478,1765000522372,-390.500736,0.00010985,2]
[396491533,1765000524936,-166.76210516,0.00010985,2]
[396492152,1765000568223,151.67,0.0001,2]
[396492157,1765000568481,151.67,0.000103,2]
[396492161,1765000568743,151.67,0.000105,2]
[396492167,1765000569031,151.67,0.000108,2]
[396492317,1765000616494,244.55229434,0.0001064,2]
[396492324,1765000619066,279.48833639,0.0001064,2]
[396492332,1765000621952,436.26382508,0.0001064,2]
[396492335,1765000627178,151.67,0.0001,2]
[396492336,1765000627466,151.67,0.000104,2]
[396492337,1765000627753,151.67,0.000107,2]
[396492339,1765000670223,-16.35503395,0.00010985,2]
[396492340,1765000671717,-5276.03199132,0.00010986,2]
[396492341,1765000673132,-10000.01,0.00010986,2]
[396492342,1765000673254,-10000.01,0.00010986,2]
[396492343,1765000673383,-10000.01,0.00010986,2]
[396492344,1765000673501,-10000.01,0.00010986,2]
[396492345,1765000673636,-4723.92800868,0.00010986,2]
[396492346,1765000673666,-175.57115848,0.00010987,2]
[396492347,1765000673721,-201.01166568,0.00010987,2]
[396492348,1765000673765,-298.98833432,0.00010987,2]
[396492349,1765000673794,-514.03,0.00010987,2]
[396492350,1765000673823,-500.0,0.00010987,2]
[396492351,1765000673851,-604.29,0.00010987,2]
[396492352,1765000673879,-500.0,0.00010987,2]
[396492353,1765000673907,-500.0,0.00010987,2]
[396492354,1765000673937,-500.0,0.00010987,2]
[396492355,1765000673966,-500.0,0.00010987,2]
[396492356,1765000673996,-500.0,0.00010987,2]
[396492357,1765000674027,-500.0,0.00010987,2]
[396492358,1765000674457,-500.0,0.00010987,2]
[396492359,1765000674490,-500.0,0.00010987,2]
[396492360,1765000674527,-500.0,0.00010987,2]
[396492361,1765000674561,-500.0,0.00010987,2]
[396492362,1765000674595,-500.0,0.00010987,2]
[396492363,1765000674627,-500.0,0.00010987,2]
[396492364,1765000674661,-500.0,0.00010987,2]
[396492365,1765000674701,-214.42255186,0.00010987,2]
[396492366,1765000674737,-500.0,0.00010987,2]
[396492367,1765000674768,-500.0,0.00010987,2]
[396492368,1765000674800,-71.16489628,0.00010987,2]
[396492369,1765000675130,-94.22843508,0.00010987,2]
[396492370,1765000675146,-334.60666864,0.00010987,2]
[396492371,1765000675154,-165.39333136,0.00010987,2]
[396492372,1765000676226,-188.59124267,0.00010987,2]
[396492373,1765000676255,-500.0,0.00010987,2]
[396492374,1765000676284,-500.0,0.00010987,2]
[396492375,1765000676314,-500.0,0.00010987,2]
[396492376,1765000676342,-500.0,0.00010987,2]
[396492377,1765000676372,-508.62,0.00010987,2]
[396492378,1765000676399,-500.0,0.00010987,2]
[396492379,1765000676784,-3769.39,0.00010987,2]
[396492380,1765000676812,-500.0,0.00010987,2]
[396492381,1765000676840,-500.0,0.00010987,2]
[396492382,1765000677057,-500.0,0.00010987,2]
[396492383,1765000677066,-500.0,0.00010987,2]
[396492384,1765000677076,-500.0,0.00010987,2]
[396492385,1765000677086,-1105.58751466,0.00010987,2]
[396492386,1765000677105,-63.39248534,0.00010987,2]
[396492387,1765000677114,-436.60751466,0.00010987,2]
[396492388,1765000677136,-317.43248534,0.00010987,2]
[396492389,1765000677145,-182.56751466,0.00010987,2]
[396492390,1765000677161,-317.43248534,0.00010987,2]
[396492391,1765000677171,-143.79751466,0.00010987,2]
[396492392,1765000679312,-356.20248534,0.00010987,2]
[396492393,1765000679342,-500.0,0.00010987,2]
[396492394,1765000679372,-500.0,0.00010987,2]
[396492395,1765000679403,-1380.67,0.00010987,2]
[396492396,1765000679524,-4526.26502932,0.00010987,2]
[396492397,1765000679562,-2848.45497068,0.00010987,2]
[396492398,1765000679683,-4794.62,0.00010987,2]
[396492399,1765000679719,-151.40145968,0.00010987,2]
[396492400,1765000679845,-107.96708064,0.00010987,2]
[396492401,1765000679855,-395.29263158,0.00010987,2]
[396492402,1765000679864,-500.0,0.00010988,2]
[396492403,1765000679875,-183.92254281,0.00010988,2]
[396492404,1765000679884,-500.0,0.00010988,2]